bitfinex/quotes_ETHUSD_20251010
["timestamp","ask_amount","ask_price","bid_price","bid_amount"]
[1760124311121,0.001,4027.4,4026.6,4.5687]
[1760124311367,0.001,4027.4,4026.7,14.9667]
[1760124311666,0.001,4027.4,4026.8,0.6336]
[1760124311831,0.001,4027.4,4027.1,1.23]
[1760124312032,0.001,4027.4,4027.2,4.102]
[1760124312357,0.001,4027.4,4027.3,4.102]
[1760124312536,0.001,4027.4,4027.3,4.5687]
[1760124313252,0.001,4027.8,4027.3,4.5687]
[1760124313571,0.012207,4028.2,4027.5,0.6336]
[1760124313861,0.012207,4028.2,4028.1,0.2336]
[1760124314034,0.012207,4028.2,4028.1,4.9682]
[1760124314226,0.012207,4028.2,4028.1,5.4349]
[1760124314423,0.012207,4028.2,4028.1,0.4667]
[1760124314678,0.012207,4028.2,4028.1,4.101]
[1760124314971,0.012207,4028.2,4028.1,4.1]
[1760124315467,0.012207,4028.2,4028.1,4.5667]
[1760124315639,0.012207,4028.2,4028.1,5.02337]
[1760124316162,0.37505841,4029.2,4028.1,5.02337]
[1760124316362,0.45603352,4030.3,4028.1,6.25337]
[1760124316528,0.0666,4030.2,4028.1,2.15337]
[1760124316727,0.76737407,4030.3,4028.2,4.099]
[1760124316728,0.0666,4030.1,4028.2,4.099]
[1760124316926,0.38928739,4029.7,4028.3,0.02482436]
[1760124317864,0.38928739,4029.7,4028.2,4.5715]
[1760124318049,0.38928739,4029.7,4028.3,0.02482436]
[1760124318259,0.37429995,4030.3,4028.4,0.4725]
[1760124318452,0.2123,4030.9,4028.5,0.45715]
[1760124318654,0.3893797,4030.4,4028.5,0.45715]
[1760124318966,1.92,4030.2,4028.5,0.45715]
[1760124319177,1.92,4029.9,4028.3,1.23]
[1760124319334,0.2404,4029.8,4028.3,1.23]
[1760124319732,2.48174686,4029.5,4028.4,4.098]
[1760124319936,0.2404,4029.4,4028.4,4.098]
[1760124320139,0.2404,4029.4,4028.5,4.098]
[1760124320359,0.38931574,4029.5,4028.3,1.23]
[1760124320360,0.6336,4029.2,4028.3,1.23]
[1760124320672,0.6336,4028.8,4028.4,1.229]
[1760124320873,2.5536,4028.6,4028.4,1.1617]
[1760124321046,34.6236,4028.5,4028.4,1.1617]
[1760124321252,45.8236,4028.5,4028.4,1.1617]
[1760124321436,35.03591351,4028.5,4028.4,1.1617]
[1760124321873,1.92,4028.5,4028.4,1.1617]
[1760124322075,1.9524,4028.5,4028.4,1.1617]
[1760124322239,0.38940385,4028.8,4028.4,1.1617]
[1760124322439,0.42180385,4028.8,4028.4,1.1617]
[1760124322640,0.38940385,4028.8,4028.4,1.1617]
[1760124322864,0.0324,4028.7,4028.4,1.1617]
[1760124323258,0.0324,4028.6,4028.4,1.1617]
[1760124323440,0.0324,4028.5,4028.4,1.1617]
[1760124323658,2.51471351,4028.5,4028.4,2.3917]
[1760124323866,4.43471351,4028.5,4028.4,3e-07]
[1760124324972,4.43471351,4028.5,4028.4,1.2300003]
[1760124324973,1.9524,4028.5,4028.4,1.2300003]
[1760124325359,1.92,4028.5,4028.4,1.2300003]
[1760124325993,0.38940385,4028.8,4028.4,1.2300003]
[1760124326177,0.38940385,4028.8,4028.4,2.4600003]
[1760124326384,0.1082,4029.8,4028.5,0.02482313]
[1760124326585,0.38931737,4029.5,4028.4,2.4600003]
[1760124326959,0.38931737,4029.5,4028.5,4.096]
[1760124327165,0.38931737,4029.5,4028.6,0.02482251]
[1760124327985,0.001,4029.4,4028.6,0.02482251]
[1760124328204,0.001,4029.4,4028.7,0.4725]
[1760124328500,0.001,4029.4,4028.8,0.02482128]
[1760124328667,0.001,4029.4,4028.7,0.4725]
[1760124329810,0.001,4029.4,4028.8,0.02482128]
[1760124329973,0.001,4029.4,4028.8,0.6336]
[1760124330170,0.001,4029.4,4028.9,0.69056323]
[1760124330414,0.001,4029.4,4029.0,6.165]
[1760124330612,0.001,4029.4,4029.0,6.6375]
[1760124330912,0.001,4029.4,4029.1,0.4725]
[1760124331321,0.001,4029.4,4029.2,0.4725]
[1760124331485,0.001,4029.4,4029.2,1.15805632]
[1760124331685,0.001,4029.4,4029.3,0.4973182]
[1760124331928,0.001,4029.4,4029.3,1.1061]
[1760124332437,0.29220284,4030.4,4029.3,1.1061]
[1760124332609,0.29220284,4030.4,4029.4,4.094]
[1760124332806,2.47990117,4032.5,4030.3,0.2239]
[1760124332992,0.37666731,4031.1,4030.4,6.6365]
[1760124333188,0.38914359,4032.4,4030.5,0.4725]
[1760124333410,0.3088,4034.3,4030.7,0.6336]
[1760124333614,0.3088,4034.3,4031.4,0.6336]
[1760124333921,0.001,4035.4,4031.6,0.6336]
[1760124334222,0.37660617,4035.4,4032.3,0.6336]
[1760124334391,0.37660617,4035.4,4034.1,0.8575]
[1760124334591,0.37660617,4035.4,4034.2,0.6336]
[1760124334592,0.001,4035.4,4034.2,0.6336]
[1760124334806,0.001,4035.4,4034.4,0.6336]
[1760124335007,0.001,4035.9,4034.8,0.6336]
[1760124335218,0.1288,4038.4,4035.0,0.6336]
[1760124335532,0.1288,4038.4,4034.9,5.54778376]
[1760124335533,0.22766567,4039.6,4035.2,0.6336]
[1760124335734,0.38206347,4039.0,4035.7,0.6336]
[1760124335895,0.38206347,4039.0,4035.8,4.5655]
[1760124336086,0.001,4039.0,4035.9,1.2293]
[1760124336288,0.001,4039.0,4036.3,0.1232]
[1760124336497,0.001,4039.0,4036.5,0.6336]
[1760124336799,2.57664683,4038.9,4036.7,0.6336]
[1760124337108,2.47632776,4038.3,4036.4,14.9725]
[1760124337310,0.1007,4038.4,4036.5,6.159]
[1760124337476,0.6336,4038.6,4036.6,2.51987668]
[1760124337681,2.47655167,4037.9,4036.6,2.49510336]
[1760124337882,2.47673589,4037.6,4035.9,2.068]
[1760124338080,0.7793,4037.8,4036.0,2.658]
[1760124338386,2.4761194,4038.6,4036.1,0.49727639]
[1760124338387,1.92,4038.1,4036.1,0.49727639]
[1760124338598,0.101,4038.6,4036.2,0.6336]
[1760124338837,2.85206267,4039.1,4036.3,0.4725]
[1760124338838,0.48989717,4038.5,4036.3,0.4725]
[1760124339176,1.92,4038.3,4036.4,0.327]
[1760124339325,2.47703016,4037.1,4035.5,2.068]
[1760124339656,0.1968,4037.0,4034.9,0.4725]
[1760124339857,1.92,4036.9,4034.9,0.4725]
[1760124340060,2.47776444,4035.9,4034.5,0.327]
[1760124340234,0.6336,4036.5,4034.5,0.327]
[1760124340567,0.1017,4036.6,4034.6,0.4725]
[1760124340718,0.6336,4036.5,4034.1,0.2239]
[1760124340922,1.92,4036.3,4034.2,0.154]
[1760124341122,2.47776356,4035.9,4034.2,2.017]
[1760124341354,4.39776356,4035.9,4034.2,2.017]
[1760124341568,1.92,4035.9,4034.3,0.49728744]
[1760124341723,0.001,4039.0,4034.4,0.02478683]
[1760124341724,1.92,4037.6,4034.4,0.02478683]
[1760124341919,0.1473,4037.8,4034.6,0.6336]
[1760124342123,0.1473,4037.8,4034.8,0.6336]
[1760124342334,0.0495,4037.8,4035.0,0.6336]
[1760124342546,2.067,4038.3,4034.9,8.528]
[1760124342547,11.98725044,4039.1,4035.2,0.6336]
[1760124342884,11.98725044,4039.1,4035.3,20.654]
[1760124342885,1.92,4037.8,4035.3,20.654]
[1760124343081,0.7305,4037.9,4035.4,1.1061]
[1760124343388,0.05,4038.0,4035.6,0.6336]
[1760124343674,2.47629238,4038.3,4035.7,0.49727884]
[1760124343889,0.6336,4038.3,4035.7,14.99727884]
[1760124344063,0.6336,4038.3,4035.8,2.06036611]
[1760124344248,2.5536,4038.0,4035.9,2.067]
[1760124344575,1.92,4037.8,4035.9,6.6265]
[1760124344777,2.52743798,4037.9,4035.9,6.6265]
[1760124344992,2.47629949,4038.3,4036.0,0.024777]
[1760124345156,2.85211016,4039.1,4036.0,0.4725]
[1760124345157,0.0513,4038.5,4036.0,0.4725]
[1760124345353,0.0513,4038.5,4036.1,0.66265]
[1760124345695,0.0513,4038.5,4036.2,10.546]
[1760124345896,0.0513,4038.5,4036.3,0.4725]
[1760124346223,0.0513,4038.5,4036.1,15.16265]
[1760124346224,2.47659235,4037.9,4036.1,15.16265]
[1760124346391,2.47666188,4037.7,4036.1,15.16265]
[1760124346591,0.0978,4037.9,4035.7,0.4503]
[1760124346592,0.0495,4037.8,4035.7,0.4503]
[1760124346892,2.4766575,4037.7,4036.2,6.153]
[1760124347118,0.0495,4037.6,4035.4,0.4503]
[1760124347416,0.0495,4037.6,4034.6,0.002]
[1760124347417,2.47762624,4036.2,4035.0,2.067]
[1760124347588,0.0495,4036.1,4034.6,0.002]
[1760124347786,0.6336,4035.9,4034.6,0.002]
[1760124347969,0.2562,4035.8,4034.6,0.002]
[1760124348307,11.92,4035.6,4034.6,0.002]
[1760124348519,2.47845415,4034.8,4034.6,0.002]
[1760124348803,2.1762,4035.7,4034.6,0.002]
[1760124349015,0.2562,4035.7,4034.6,0.002]
[1760124350005,2.47721222,4036.8,4034.7,0.4339]
[1760124350215,2.47702558,4037.1,4034.8,1.41]
[1760124350365,2.47702558,4037.1,4034.6,0.1272]
[1760124350366,2.4773324,4036.6,4034.6,0.002]
[1760124350565,1.92,4036.4,4034.6,0.002]
[1760124350884,0.6336,4036.2,4034.6,0.002]
[1760124351062,2.47788623,4035.7,4034.6,0.002]
[1760124351263,2.4778311,4035.8,4034.6,0.002]
[1760124351479,0.2072,4035.9,4034.6,0.002]
[1760124351681,2.5536,4036.6,4034.6,0.002]
[1760124351971,2.47817924,4035.3,4034.6,0.002]
[1760124352206,1.92,4035.6,4034.6,0.002]
[1760124352395,0.0511,4035.2,4034.6,0.002]
[1760124352602,2.47849902,4034.7,4034.6,0.002]
[1760124352806,5.03209902,4034.7,4034.6,0.002]
[1760124352978,36.3063866,4034.7,4034.6,0.002]
[1760124353286,51.5733866,4034.7,4034.6,0.002]
[1760124353620,1.92,4034.6,4033.7,0.002]
[1760124353803,4.60825201,4033.8,4033.7,0.002]
[1760124353990,2.1292,4033.8,4033.7,0.002]
[1760124354180,4.66085201,4033.8,4033.7,0.002]
[1760124354381,1.92,4033.8,4033.7,0.002]
[1760124355213,1.9742,4033.8,4033.7,0.002]
[1760124355421,5.08685201,4033.8,4033.7,0.002]
[1760124355716,35.08685201,4033.8,4033.7,0.002]
[1760124356077,45.08685201,4033.8,4033.7,0.002]
[1760124356271,11.12385201,4033.8,4033.7,0.002]
[1760124357219,10.30085201,4033.8,4033.7,0.002]
[1760124357564,0.2077,4034.3,4033.7,0.002]
[1760124357766,0.054,4033.8,4033.7,0.002]
[1760124358360,5.08665201,4033.8,4033.7,0.002]
[1760124358866,35.47571783,4033.8,4033.7,0.002]
[1760124359231,39.55971783,4033.8,4033.7,0.002]
[1760124360123,2.99666582,4033.8,4033.7,0.002]
[1760124360322,0.38906582,4033.8,4033.7,0.002]
[1760124361065,0.2061,4034.9,4033.7,0.002]
[1760124361066,2.4511,4034.9,4033.7,0.002]
[1760124361419,2.47848854,4034.8,4033.7,0.002]
[1760124361623,0.2061,4034.9,4033.7,0.002]
[1760124361860,2.1261,4034.9,4033.7,0.002]
[1760124362064,0.2061,4034.9,4033.7,0.002]
[1760124362267,4.083,4035.0,4033.7,0.002]
[1760124362635,0.38896715,4035.2,4033.7,0.002]
[1760124362834,0.2596,4036.1,4033.8,0.4339]
[1760124363036,0.64848684,4036.1,4033.8,0.4339]
[1760124363237,1.92,4035.9,4033.8,0.4339]
[1760124363561,30.2612,4036.0,4033.7,4.085]
[1760124363562,2.47812411,4035.4,4033.7,4.085]
[1760124363773,14.39791067,4035.7,4033.8,0.6152]
[1760124363946,1.92,4035.5,4033.9,0.4339]
[1760124364152,1.92,4035.4,4033.9,0.4339]
[1760124364351,1.92,4035.5,4033.9,0.4339]
[1760124364557,6.6366,4035.7,4033.9,0.4339]
[1760124364757,6.6366,4035.7,4034.0,0.02478929]
[1760124364957,6.6366,4035.7,4033.9,0.4339]
[1760124365251,6.6366,4035.7,4034.0,0.02478929]
[1760124365252,2.47799391,4035.6,4034.0,0.02478929]
[1760124365457,9.11449117,4035.7,4034.0,0.02478929]
[1760124365642,0.6336,4035.7,4034.0,0.02478929]
[1760124365844,1.92,4035.6,4034.0,0.25456893]
[1760124366077,1.92,4035.6,4034.0,0.27935822]
[1760124366460,1.92,4035.7,4034.0,0.27935822]
[1760124366783,0.3888709,4035.8,4034.1,0.6647]
[1760124367083,0.79936684,4037.0,4034.2,13.4755]
[1760124367378,0.38879958,4036.6,4034.4,0.6336]
[1760124367539,0.38879958,4036.6,4034.6,0.6336]
[1760124367744,0.001,4037.0,4034.7,0.4339]
[1760124368244,0.001,4037.0,4034.8,14.5]
[1760124368245,0.0526,4036.9,4034.8,14.5]
[1760124368557,0.001,4037.0,4034.3,1.39608689]
[1760124368558,0.6336,4036.5,4034.3,1.39608689]
[1760124368776,0.6336,4036.5,4034.9,4.082]
[1760124368960,0.0526,4036.8,4034.9,4.082]
[1760124369167,2.47755932,4036.3,4035.0,6.148]
[1760124369465,0.0526,4036.2,4035.0,4.081]
[1760124369706,2.5536,4036.7,4034.4,0.4339]
[1760124370004,2.36136269,4036.8,4035.1,4.081]
[1760124370201,0.38876269,4036.8,4035.2,0.45868191]
[1760124370386,0.38876269,4036.8,4035.2,0.4339]
[1760124370584,0.38876269,4036.8,4035.2,0.45868191]
[1760124370781,0.001,4037.0,4035.3,4.081]
[1760124370982,0.001,4037.0,4035.4,0.51297]
[1760124371199,0.001,4037.0,4035.5,14.5]
[1760124371693,0.001,4037.0,4035.6,0.4339]
[1760124372065,0.001,4037.0,4035.7,0.02477884]
[1760124372266,0.001,4037.0,4035.8,14.9339]
[1760124372521,0.001,4037.0,4035.9,1.55675]
[1760124372699,0.001,4037.0,4035.9,1.99065]
[1760124372859,0.001,4037.0,4036.0,0.4339]
[1760124373064,0.001,4037.0,4036.1,4.08]
[1760124373261,0.001,4037.0,4036.0,0.4339]
[1760124373508,0.001,4037.0,4036.1,7.795065]
[1760124374012,0.001,4037.0,4036.1,1.649065]
[1760124374169,0.001,4037.0,4036.2,4.079]
[1760124374522,0.6346,4038.2,4036.2,4.079]
[1760124374523,0.001,4038.2,4036.3,2.5536]
[1760124374805,0.001,4038.2,4036.5,0.6336]
[1760124375099,0.001,4038.2,4036.7,0.6336]
[1760124375298,0.001,4038.2,4036.9,0.6336]
[1760124375509,0.001,4038.2,4037.0,4.079]
[1760124375694,0.001,4038.2,4037.0,21.0789]
[1760124376003,0.001,4038.2,4037.1,6.5789]
[1760124376212,0.001,4038.2,4037.2,0.02476964]
[1760124376442,0.001,4038.2,4038.1,0.2261]
[1760124376629,0.001,4038.2,4038.1,4.3051]
[1760124376833,0.001,4038.2,4038.1,4.78166412]
[1760124377006,0.001,4039.7,4038.1,4.78166412]
[1760124377007,0.11018452,4040.6,4038.1,0.6779]
[1760124377314,2.5536,4040.4,4037.5,14.5]
[1760124377531,0.6336,4039.9,4037.6,1.6257967]
[1760124377715,2.0529,4039.8,4037.7,6.144]
[1760124377917,0.1329,4039.8,4037.7,0.4518]
[1760124378145,1.92,4039.7,4037.8,6.144]
[1760124378349,0.1329,4039.8,4037.9,0.47656534]
[1760124378561,0.33250999,4039.9,4038.0,0.66205653]
[1760124378716,1.92,4040.3,4038.1,0.4518]
[1760124378920,0.6336,4040.5,4038.2,4.077]
[1760124379149,0.0013,4040.4,4038.3,0.4518]
[1760124379358,0.6336,4040.5,4038.4,0.6336]
[1760124379359,0.32347101,4040.5,4038.4,0.6336]
[1760124379558,0.0013,4041.0,4038.6,0.6336]
[1760124380079,2.142,4041.7,4038.5,0.96804]
[1760124380080,0.0169,4040.9,4038.7,0.4518]
[1760124380220,0.38838527,4040.5,4038.1,0.4518]
[1760124380419,0.6336,4040.2,4037.6,0.4518]
[1760124380636,2.47539501,4039.8,4037.7,6.141]
[1760124380857,0.6336,4040.0,4037.7,6.141]
[1760124380858,0.1498,4039.7,4037.8,0.65928]
[1760124381065,1.92,4039.6,4037.8,0.65928]
[1760124381279,0.1498,4039.7,4037.9,0.4518]
[1760124381564,30.0,4039.4,4036.2,4.076]
[1760124381763,0.6336,4039.0,4036.3,0.43021]
[1760124381935,11.92,4038.8,4036.4,0.02477455]
[1760124382130,0.6336,4038.3,4036.4,0.02477455]
[1760124382326,0.6336,4038.3,4036.3,0.88201]
[1760124382327,4.39641397,4038.1,4036.3,0.88201]
[1760124382525,2.47659129,4037.9,4036.3,0.88201]
[1760124382762,0.6336,4037.4,4035.5,0.4518]
[1760124382936,0.3886621,4037.6,4035.6,0.33477946]
[1760124383136,0.3886621,4037.6,4035.7,0.4518]
[1760124383837,2.538,4038.2,4035.7,0.4518]
[1760124383838,0.099,4038.4,4035.8,0.65837823]
[1760124384151,0.6336,4037.7,4033.7,0.002]
[1760124384322,2.47684153,4037.4,4035.3,0.4518]
[1760124384528,1.92,4037.5,4035.4,2.255]
[1760124384723,1.92,4037.5,4035.5,0.95376007]
[1760124385064,0.3886494,4037.8,4035.7,0.6336]
[1760124385360,1.92,4037.6,4035.8,6.14]
[1760124385526,0.38859884,4037.7,4035.9,0.4518]
[1760124386361,2.47677022,4037.6,4035.9,0.4518]
[1760124386561,0.6336,4037.5,4034.1,0.2308]
[1760124386766,2.47734169,4036.6,4034.2,2.5388]
[1760124386937,0.099,4036.8,4034.3,7.51326]
[1760124387138,0.38866272,4036.7,4034.4,0.47658683]
[1760124387343,0.38866272,4036.7,4034.5,12.594]
[1760124387551,0.38866272,4036.7,4034.6,6.139]
[1760124387552,0.6336,4036.3,4034.6,6.139]
[1760124387934,2.5536,4036.3,4034.7,0.02478499]
[1760124388129,0.099,4037.2,4034.8,0.4518]
[1760124388329,0.38878092,4036.7,4034.9,0.02478376]
[1760124388556,0.38878092,4036.7,4035.0,0.4518]
[1760124389171,2.47734095,4036.6,4035.1,0.325]
[1760124389466,1.92,4036.2,4034.2,0.4518]
[1760124389679,4.3975251,4036.3,4034.3,0.472]
[1760124389875,2.47763402,4036.2,4034.4,0.79396]
[1760124390077,2.47783924,4035.8,4034.4,0.32196]
[1760124390386,2.47800768,4035.5,4033.8,0.002]
[1760124390539,1.92,4035.3,4033.8,0.002]
[1760124391050,2.47827347,4035.1,4033.8,0.002]
[1760124391406,0.38891428,4035.3,4033.8,0.02679052]
[1760124391611,0.38891428,4035.3,4033.9,0.70167905]
[1760124391905,0.38891428,4035.3,4033.9,0.24987905]
[1760124392106,2.47825332,4035.1,4034.0,2.683]
[1760124392404,0.1001,4035.2,4034.1,0.02478867]
[1760124392628,3.21194741,4035.2,4033.8,0.002]
[1760124392806,0.7337,4035.2,4033.8,0.02679052]
[1760124393018,0.38891428,4035.3,4033.8,0.02679052]
[1760124393316,0.38891428,4035.3,4033.8,0.002]
[1760124393873,0.38891428,4035.3,4033.9,0.18068]
[1760124394078,0.38891428,4035.3,4034.0,0.4518]
[1760124394292,0.38891428,4035.3,4034.1,0.2261]
[1760124395313,0.38891428,4035.3,4034.2,0.02478806]
[1760124395623,0.38891428,4035.3,4033.8,0.002]
[1760124395624,2.47837616,4034.9,4033.8,0.002]
[1760124395773,2.47843759,4034.8,4033.8,0.002]
[1760124396110,2.5536,4034.7,4033.8,0.002]
[1760124396309,2.5536,4034.5,4033.8,0.002]
[1760124396511,0.2101,4033.9,4033.8,0.002]
[1760124396715,5.24269055,4033.9,4033.8,0.002]
[1760124396919,5.34169055,4033.9,4033.8,0.002]
[1760124397284,35.34169055,4033.9,4033.8,0.002]
[1760124397601,35.73078217,4033.9,4033.8,0.002]
[1760124399031,14.93578217,4033.9,4033.8,0.002]
[1760124399995,2.30909162,4033.9,4033.8,0.002]
[1760124400197,2.40919162,4033.9,4033.8,0.002]
[1760124400408,4.88818217,4033.9,4033.8,0.002]
[1760124400612,5.52178217,4033.9,4033.8,0.002]
[1760124401013,39.59578217,4033.9,4033.8,0.002]
[1760124401208,50.78078217,4033.9,4033.8,0.002]
[1760124401611,33.11289786,4033.4,4033.3,0.002]
[1760124401810,35.03289786,4033.4,4033.3,0.002]
[1760124402011,35.13299786,4033.4,4033.3,0.002]
[1760124402230,35.52215144,4033.4,4033.3,0.002]
[1760124402830,50.78315144,4033.4,4033.3,0.002]
[1760124403001,5.03295933,4033.3,4033.2,1e-08]
[1760124403203,4.40028176,4031.8,4029.3,0.4518]
[1760124403413,0.6336,4031.6,4029.2,0.309]
[1760124403632,0.6336,4031.6,4029.3,0.6894]
[1760124403633,2.5536,4031.6,4029.3,0.6894]
[1760124403844,0.38913243,4031.3,4029.4,0.4518]
[1760124404501,0.1629,4032.2,4029.5,0.65841697]
[1760124404701,0.707,4032.1,4029.6,0.4518]
[1760124404907,0.38910746,4031.9,4029.6,0.4518]
[1760124405413,0.38910746,4031.9,4029.7,5.762]
[1760124405735,0.38910746,4031.9,4029.8,1.78264]
[1760124405937,0.38910746,4031.9,4029.9,10.7948]
[1760124406128,2.627,4032.1,4029.9,0.4518]
[1760124406324,0.707,4032.1,4029.9,0.4518]
[1760124406540,0.38909869,4031.8,4030.0,2.83]
[1760124406738,0.38909869,4031.8,4030.1,0.6678]
[1760124406938,0.38909869,4031.8,4030.2,0.78518]
[1760124407531,0.38909869,4031.8,4030.3,4.5084]
[1760124407848,0.38909869,4031.8,4030.4,1.069]
[1760124408052,2.64238917,4033.1,4030.5,0.4354]
[1760124408252,0.38907366,4032.4,4030.5,0.4354]
[1760124408422,0.38907366,4032.4,4030.6,6.8609]
[1760124408618,0.38907366,4032.4,4030.6,0.7209]
[1760124408953,2.30907366,4032.4,4030.7,3.142]
[1760124409156,2.30907366,4032.4,4030.5,0.4354]
[1760124409352,0.38907366,4032.4,4030.6,3.195]
[1760124409752,0.38907366,4032.4,4030.7,0.49330958]
[1760124410052,0.38907366,4032.4,4030.8,6.141]
[1760124410355,0.38907366,4032.4,4030.4,6.462]
[1760124410356,30.6336,4032.1,4029.4,6.462]
[1760124410561,0.6336,4031.7,4029.5,0.69305]
[1760124410761,2.5536,4030.6,4028.6,6.462]
[1760124410919,2.5536,4030.6,4028.4,3.6920003]
[1760124410920,2.48127087,4030.2,4028.4,3.6920003]
[1760124411121,0.099,4030.1,4028.7,2.068]
[1760124411957,0.099,4030.1,4028.4,3.6920003]
[1760124412156,0.099,4030.0,4028.5,6.75620003]
[1760124412347,0.1321,4029.9,4028.5,6.75620003]
[1760124412543,0.1321,4029.9,4028.5,0.61520003]
[1760124412754,0.1321,4029.9,4028.4,3.6920003]
[1760124412956,0.099,4029.8,4028.4,7.7650003]
[1760124413358,0.099,4029.8,4028.5,6.141]
[1760124413548,2.019,4029.8,4028.6,4.073]
[1760124413723,0.6336,4029.6,4028.4,3.6920003]
[1760124413937,0.1321,4029.9,4028.4,3.6920003]
[1760124413938,0.6336,4029.4,4028.4,3.6920003]
[1760124414140,2.4084043,4029.5,4028.4,3.6920003]
[1760124414141,0.4884043,4029.5,4028.5,0.02482313]
[1760124414354,0.4884043,4029.5,4028.4,4.55320033]
[1760124414996,2.4084043,4029.5,4028.4,3.6920003]
[1760124415140,0.4884043,4029.5,4028.4,3.6920003]
[1760124415492,0.7326,4029.4,4028.4,3.6920003]
[1760124415651,2.019,4029.3,4028.4,3.6920003]
[1760124415973,0.6336,4029.1,4028.4,3.6920003]
[1760124416135,0.6336,4028.8,4028.4,3.6920003]
[1760124416341,0.099,4028.7,4028.4,3.6920003]
[1760124416534,0.099,4028.6,4028.4,3.6920003]
[1760124416749,0.099,4028.5,4028.4,3.6920003]
[1760124417761,0.67065266,4028.8,4028.4,3.6920003]
[1760124417971,10.0,4030.7,4028.4,3.6920003]
[1760124417972,0.099,4031.1,4028.5,2.56132313]
[1760124418147,0.099,4031.1,4028.6,1.1021]
[1760124418478,0.099,4031.0,4028.7,0.4685]
[1760124418683,0.099,4031.0,4028.8,12.606]
[1760124418987,0.067,4031.8,4028.9,4.073]
[1760124418988,30.0,4030.8,4028.9,4.073]
[1760124419150,1.92,4030.6,4028.9,4.6872]
[1760124419339,7.04229145,4030.7,4028.9,4.6872]
[1760124419535,4.46232352,4030.7,4028.9,4.6872]
[1760124419740,0.6336,4030.5,4028.9,4.6872]
[1760124420057,0.6336,4030.5,4029.0,0.02482005]
[1760124420260,1.92,4030.4,4029.1,0.67810201]
[1760124420577,0.6336,4030.5,4029.2,0.02481882]
[1760124421283,1.92,4031.0,4029.2,0.02481882]
[1760124421700,1.92,4031.0,4029.1,1.14660201]
[1760124421701,0.099,4031.8,4029.3,0.4685]
[1760124421989,2.48038969,4031.7,4029.3,0.4685]
[1760124422177,1.92,4031.7,4029.3,0.4685]
[1760124422678,0.48823705,4031.6,4029.3,0.4685]
[1760124422981,2.48047217,4031.5,4029.3,0.4685]
[1760124423182,0.099,4031.5,4029.3,0.4685]
[1760124423389,0.099,4031.4,4029.3,0.4685]
[1760124423588,0.6336,4031.2,4029.4,6.14]
[1760124423788,0.38924782,4030.9,4029.5,1.30745]
[1760124424155,0.38924782,4030.9,4029.3,0.4685]
[1760124424350,0.38924782,4030.9,4029.4,1.457]
[1760124424880,0.38542774,4031.8,4029.5,0.4685]
[1760124425075,1.92,4031.7,4029.5,0.4685]
[1760124425277,0.38917369,4031.4,4029.5,0.4685]
[1760124425589,0.38542774,4031.8,4029.6,0.42426635]
[1760124425789,0.38542774,4031.8,4029.7,0.4685]
[1760124425966,0.38924559,4031.6,4029.8,0.02481512]
[1760124426169,0.38542774,4031.8,4029.8,0.02481512]
[1760124426474,0.38542774,4031.8,4029.9,0.4685]
[1760124426687,0.28445543,4031.8,4030.0,0.02481389]
[1760124426858,0.099,4032.3,4030.1,0.6994]
[1760124427053,0.099,4032.3,4030.2,0.49331266]
[1760124427360,2.48025242,4031.9,4030.3,2.73]
[1760124427566,2.1155,4031.8,4030.3,0.273]
[1760124427859,0.28352582,4031.9,4030.4,1.12631143]
[1760124428054,1.92,4032.9,4030.5,1.1005]
[1760124428268,0.099,4032.7,4030.6,0.922]
[1760124428471,2.48020228,4032.0,4030.5,0.4685]
[1760124428672,2.48020228,4032.0,4030.1,0.2309]
[1760124428673,4.40026748,4031.9,4030.1,0.2309]
[1760124428875,1.92,4031.8,4029.9,2.5375]
[1760124429084,0.6336,4031.6,4030.0,2.32275]
[1760124429289,0.3891956,4031.5,4030.1,4.32471328]
[1760124429487,0.3891956,4031.5,4030.2,0.4685]
[1760124429776,3.11358189,4032.3,4030.3,0.02481204]
[1760124429977,0.38920333,4031.9,4030.4,4.069]
[1760124430288,0.099,4031.8,4030.5,6.138]
[1760124430481,1.92,4031.7,4030.5,6.138]
[1760124430671,1.92,4031.7,4030.4,0.47684]
[1760124430868,0.6336,4031.6,4029.6,0.4685]
[1760124431073,1.92,4031.7,4029.7,2.387]
[1760124431276,0.099,4031.8,4029.8,0.77886512]
[1760124431277,0.38919438,4031.8,4029.8,0.77886512]
[1760124431469,0.38919438,4031.8,4029.9,0.4685]
[1760124431698,0.38919438,4031.8,4030.0,4.203]
[1760124431904,2.48040265,4031.7,4029.9,0.4685]
[1760124432109,0.6336,4031.3,4029.7,0.345]
[1760124432316,0.6336,4031.0,4029.3,0.4685]
[1760124432517,2.019,4030.9,4029.4,1.776]
[1760124432822,2.019,4030.9,4029.5,0.02481697]
[1760124433019,4.49985105,4030.9,4029.4,4.068]
[1760124433203,2.019,4030.9,4029.4,4.5365]
[1760124433373,2.019,4030.9,4029.5,0.68536697]
[1760124433374,1.92,4030.9,4029.5,0.68536697]
[1760124433580,1.92,4031.4,4029.6,0.4685]
[1760124433808,2.5536,4031.6,4029.7,0.02481574]
[1760124434077,0.6336,4031.4,4028.3,2.46]
[1760124434278,1.92,4030.6,4028.3,2.46]
[1760124434577,2.48175907,4029.4,4028.4,3.6920003]
[1760124434775,0.099,4030.5,4028.4,3.6920003]
[1760124434776,1.92,4029.0,4028.4,3.6920003]
[1760124434977,3.11591351,4028.5,4028.4,3.6920003]